fUST/lending_fUST_20250722
["ID","MTS","AMOUNT","RATE_DAILY","PERIOD"]
[373817227,1753121432477,-460.0,0.00019873,2]
[373817228,1753121432486,-460.0,0.00019873,2]
[373817229,1753121432496,-500.0,0.00019873,2]
[373817230,1753121432506,-460.0,0.00019873,2]
[373817232,1753121432515,-460.0,0.00019873,2]
[373817234,1753121432524,-500.0,0.00019873,2]
[373817235,1753121432534,-244.47005337,0.00019873,2]
[373817285,1753121437945,-355397.07233598,0.00019817,2]
[373817287,1753121437956,-215.52994663,0.00019873,2]
[373817289,1753121437966,-323.33328266,0.00019873,2]
[373817291,1753121437976,-460.0,0.00019873,2]
[373817293,1753121437986,-460.0,0.00019873,2]
[373817295,1753121437996,-460.0,0.00019873,2]
[373817297,1753121438006,-1301.59,0.00019873,2]
[373817299,1753121438015,-460.0,0.00019873,2]
[373817301,1753121438025,-460.0,0.00019873,2]
[373817303,1753121438035,-460.0,0.00019873,2]
[373817305,1753121438044,-460.0,0.00019873,2]
[373817307,1753121438054,-460.0,0.00019873,2]
[373817309,1753121438064,-389.44,0.00019873,2]
[373817311,1753121438073,-460.0,0.00019873,2]
[373817313,1753121438083,-460.0,0.00019873,2]
[373817315,1753121438092,-460.0,0.00019873,2]
[373817317,1753121438101,-534.1817611,0.00019873,2]
[373817319,1753121438111,-460.0,0.00019873,2]
[373817321,1753121438121,-1160.48,0.00019873,2]
[373817323,1753121438130,-460.0,0.00019873,2]
[373817325,1753121438140,-460.0,0.00019873,2]
[373817327,1753121438149,-460.0,0.00019873,2]
[373817329,1753121438158,-460.0,0.00019873,2]
[373817331,1753121438167,-460.0,0.00019873,2]
[373817333,1753121438177,-535.96,0.00019873,2]
[373817335,1753121438186,-460.0,0.00019873,2]
[373817337,1753121438195,-682.39,0.00019873,2]
[373817339,1753121438205,-460.0,0.00019873,2]
[373817341,1753121438215,-460.0,0.00019873,2]
[373817343,1753121438225,-460.0,0.00019873,2]
[373817345,1753121438235,-460.0,0.00019873,2]
[373817347,1753121438245,-460.0,0.00019873,2]
[373817349,1753121438254,-460.0,0.00019874,2]
[373817351,1753121438263,-460.0,0.00019874,2]
[373817353,1753121438273,-460.0,0.00019874,2]
[373817355,1753121438283,-460.0,0.00019874,2]
[373817357,1753121438293,-460.0,0.00019874,2]
[373817360,1753121438303,-151.0,0.00019874,2]
[373817362,1753121438312,-460.0,0.00019874,2]
[373817364,1753121438321,-460.0,0.00019874,2]
[373817366,1753121438331,-460.0,0.00019874,2]
[373817368,1753121438341,-460.0,0.00019874,2]
[373817370,1753121438350,-460.0,0.00019874,2]
[373817372,1753121438361,-460.0,0.00019874,2]
[373817374,1753121438370,-460.0,0.00019874,2]
[373817376,1753121438380,-523.9,0.00019874,2]
[373817378,1753121438389,-500.0,0.00019874,2]
[373817380,1753121438405,-151.0,0.00019874,2]
[373817382,1753121438415,-460.0,0.00019874,2]
[373817384,1753121438424,-460.0,0.00019875,2]
[373817386,1753121438434,-500.0,0.00019875,2]
[373817388,1753121438445,-279.08270891,0.00019875,2]
[373817390,1753121438454,-460.0,0.00019875,2]
[373817392,1753121438463,-1523.3,0.00019875,2]
[373817393,1753121438475,-460.0,0.00019875,2]
[373817395,1753121438484,-460.0,0.00019875,2]
[373817397,1753121438494,-460.0,0.00019875,2]
[373817399,1753121438503,-5790.25604628,0.000199,2]
[373817401,1753121438513,-160.0,0.000199,2]
[373817403,1753121438522,-1753.0,0.000199,2]
[373817405,1753121438532,-1753.0,0.000199,2]
[373817407,1753121438541,-160.0,0.000199,2]
[373817409,1753121438550,-1753.0,0.000199,2]
[373817411,1753121438559,-154.0,0.000199,2]
[373817413,1753121438568,-1753.0,0.000199,2]
[373817415,1753121438577,-255.74324676,0.000199,2]
[373817417,1753121438586,-1753.0,0.000199,2]
[373817419,1753121438596,-1753.0,0.000199,2]
[373817421,1753121438605,-1753.0,0.000199,2]
[373817423,1753121438615,-1753.0,0.000199,2]
[373817425,1753121438624,-1753.0,0.000199,2]
[373817427,1753121438633,-1753.0,0.000199,2]
[373817429,1753121438642,-1753.0,0.000199,2]
[373817431,1753121438651,-1753.0,0.000199,2]
[373817433,1753121438661,-1753.0,0.000199,2]
[373817435,1753121438671,-1753.0,0.000199,2]
[373817437,1753121438680,-1753.0,0.000199,2]
[373817439,1753121438690,-324.0,0.000199,2]
[373817441,1753121438699,-324.0,0.000199,2]
[373817442,1753121438708,-1753.0,0.000199,2]
[373817444,1753121438718,-1753.0,0.000199,2]
[373817446,1753121438729,-1753.0,0.000199,2]
[373817448,1753121438738,-1753.0,0.000199,2]
[373817450,1753121438748,-324.0,0.000199,2]
[373817453,1753121438758,-1753.0,0.000199,2]
[373817454,1753121438768,-324.0,0.000199,2]
[373817456,1753121438779,-324.0,0.000199,2]
[373817458,1753121438788,-1753.0,0.000199,2]
[373817460,1753121438797,-1753.0,0.000199,2]
[373817462,1753121438807,-460.0,0.00019908,2]
[373817464,1753121438815,-460.0,0.00019908,2]
[373817466,1753121438825,-609.1376546,0.00019908,2]
[373817468,1753121438835,-500.0,0.00019908,2]
[373817470,1753121438844,-160.0,0.00019916,2]
[373817472,1753121438853,-476.51375022,0.00019916,2]
[373817474,1753121438863,-160.0,0.00019916,2]
[373817476,1753121438872,-231.02460978,0.00019916,2]
[373817478,1753121438882,-160.0,0.00019916,2]
[373817480,1753121438893,-214.60209147,0.00019916,2]
[373817482,1753121438902,-215.75719967,0.00019916,2]
[373817484,1753121438912,-839.74694734,0.00019916,2]
[373817486,1753121438921,-12617.54915256,0.00019917,2]
[373817488,1753121438930,-160.0,0.00019917,2]
[373817490,1753121438939,-525.99222921,0.00019917,2]
[373817492,1753121438949,-160.0,0.00019917,2]
[373817494,1753121438958,-160.0,0.00019917,2]
[373817496,1753121438966,-160.0,0.00019917,2]
[373817498,1753121438977,-460.0,0.0001993,2]
[373817500,1753121438986,-460.0,0.0001993,2]
[373817502,1753121438995,-460.0,0.0001993,2]
[373817504,1753121439005,-348049.39483473,0.0001996,2]
[373817516,1753121439107,-104078.80554861,0.0001996,2]
[373817579,1753121440052,-324.0,0.000199,2]
[373817581,1753121440062,-400.78789557,0.0001996,2]
[373817833,1753121442987,-1247.36,0.00019872,2]
[373817836,1753121442997,-1753.0,0.000199,2]
[373817838,1753121443006,-1753.0,0.000199,2]
[373817840,1753121443015,-1753.0,0.000199,2]
[373817842,1753121443025,-6204.48210443,0.0001996,2]
[373820023,1753121795802,169.832885,0.00013699,2]
[373820035,1753122437091,-434.40642795,0.000189,2]
[373820036,1753122437112,-161.313294,0.00018981,2]
[373820037,1753122437139,-202.150733,0.00019178,2]
[373820038,1753122437164,-334.108329,0.0001956,2]
[373820039,1753122437184,-273.53337822,0.00019815,2]
[373820042,1753122556217,-289.6042853,0.000189,2]
[373820043,1753122616755,484414.37015834,0.0002537,50]
[373820078,1753122632187,-207.80038364,0.00019222,2]
[373820080,1753122632196,-278.423607,0.0001956,2]
[373820082,1753122632205,-25.14784616,0.00019815,2]
[373820129,1753122638269,-274.85215384,0.00019815,2]
[373820131,1753122638278,-877.0,0.00019815,2]
[373820133,1753122638288,-460.0,0.00019816,2]
[373820135,1753122638298,-460.0,0.00019816,2]
[373820137,1753122638307,-399.2313371,0.00019816,2]
[373820139,1753122638317,-1325.79,0.00019816,2]
[373820141,1753122638328,-300.93384572,0.00019816,2]
[373820335,1753122640226,-892.4973625,0.00019816,2]
[373820337,1753122640238,-2.81879178,0.00019816,2]
[373820339,1753122640248,-565.03141817,0.00019816,2]
[373820341,1753122640258,-169.75456655,0.00019816,2]
[373820343,1753122640267,-247.2352235,0.00019816,2]
[373820346,1753122640279,-212.7647765,0.00019816,2]
[373820348,1753122640288,-153.3022778,0.00019816,2]
[373820351,1753122640304,-306.6977222,0.00019816,2]
[373820353,1753122640314,-52.80327784,0.00019816,2]
[373820355,1753122640326,-706.21672216,0.00019816,2]
[373820357,1753122640338,-460.0,0.00019816,2]
[373820359,1753122640347,-460.0,0.00019816,2]
[373820361,1753122640357,-460.0,0.00019816,2]
[373820363,1753122640367,-460.0,0.00019816,2]
[373820365,1753122640376,-386.72423819,0.00019816,2]
[373820676,1753122643384,-73.27576181,0.00019816,2]
[373820677,1753122643393,-756.02,0.00019816,2]
[373820679,1753122643403,-460.0,0.00019816,2]
[373820681,1753122643412,-335.84,0.00019816,2]
[373820683,1753122643422,-460.0,0.00019816,2]
[373820685,1753122643432,-460.0,0.00019816,2]
[373820687,1753122643443,-460.0,0.00019816,2]
[373820689,1753122643453,-460.0,0.00019816,2]
[373820691,1753122643462,-734.25,0.00019816,2]
[373820693,1753122643472,-460.0,0.00019816,2]
[373820695,1753122643481,-460.0,0.00019816,2]
[373820697,1753122643491,-460.0,0.00019816,2]
[373820699,1753122643500,-460.0,0.00019816,2]
[373820701,1753122643510,-233.63904906,0.00019816,2]
[373827352,1753122785701,414.0,0.00027397,120]
[373827356,1753123182194,169.832885,0.00013699,2]
[373827359,1753123633781,-261.79773939,0.000189,2]
[373827360,1753123633802,-161.720586,0.00019178,2]
[373827361,1753123633824,-300.0,0.00019798,2]
[373827362,1753123633844,-462.18515848,0.00019799,2]
[373827363,1753123633866,-373.3619644,0.00019799,2]
[373827531,1753123833594,-173.22949425,0.00019715,2]
[373827534,1753123833606,-294.31859592,0.00019715,2]
[373827536,1753123833616,-300.0,0.00019798,2]
[373827538,1753123833626,-92.9873624,0.00019799,2]
[373827540,1753123833636,-460.0,0.00019799,2]
[373827543,1753123833646,-460.0,0.00019799,2]
[373827545,1753123833656,-460.0,0.00019799,2]
[373827547,1753123833666,-462.30863829,0.00019799,2]
[373827549,1753123833676,-59.38857299,0.00019799,2]
[373832230,1753124191658,169.832885,0.00013699,2]
[373832241,1753124770023,-1384.83531876,0.000189,2]
[373832242,1753124770048,-610.0,0.00018944,2]
[373832243,1753124770072,-610.0,0.00019107,2]
[373832244,1753124770095,-300.0,0.00019172,2]
[373832245,1753124770118,-300.0,0.00019172,2]
[373832246,1753124770141,-300.0,0.00019172,2]
[373832247,1753124770165,-4591.56061574,0.00019173,2]
[373832248,1753124770187,-7309.88781342,0.00019173,2]
[373832249,1753124770209,-1156.58822019,0.00019173,2]
[373832250,1753124770234,-666.0,0.00019178,2]
[373832251,1753124770256,-254.183263,0.00019178,2]
[373832252,1753124770279,-452.96,0.00019219,3]
[373832253,1753124770306,-226.48,0.00019219,3]
[373832254,1753124770328,-679.46,0.00019219,3]
[373832255,1753124770351,-460.0,0.00019227,2]
[373832256,1753124770374,-460.0,0.00019227,2]
[373832257,1753124770397,-460.0,0.00019227,2]
[373832258,1753124770420,-460.0,0.00019227,2]
[373832259,1753124770446,-460.0,0.00019227,2]
[373832260,1753124770472,-460.0,0.00019227,2]
[373832261,1753124770493,-460.0,0.00019227,2]
[373832262,1753124770522,-548.81,0.00019227,2]
[373832263,1753124770544,-460.0,0.00019227,2]
[373832264,1753124770567,-460.0,0.00019227,2]
[373832265,1753124770591,-460.0,0.00019227,2]
[373832266,1753124770613,-460.0,0.00019227,2]
[373832267,1753124770637,-466.48323368,0.00019227,2]
[373832268,1753124770661,-500.0,0.00019228,2]
[373832269,1753124770685,-500.0,0.00019228,2]
[373832270,1753124770709,-555.9098475,0.00019228,2]
[373832271,1753124770731,-500.0,0.00019228,2]
[373832272,1753124770754,-500.0,0.00019228,2]
[373832273,1753124770778,-500.0,0.00019228,2]
[373832274,1753124770801,-500.0,0.00019228,2]
[373832275,1753124770824,-500.0,0.00019228,2]
[373832276,1753124770848,-420.02311886,0.00019228,2]
[373832277,1753124770875,-555.9098475,0.00019228,2]
[373832278,1753124771058,-404.88800281,0.00019228,2]
[373832279,1753124771091,-500.0,0.00019228,2]
[373832280,1753124771114,-500.0,0.00019228,2]
[373832281,1753124771137,-500.0,0.00019228,2]
[373832282,1753124771160,-500.0,0.00019228,2]
[373832283,1753124771184,-500.0,0.00019228,2]
[373832284,1753124771208,-555.9098475,0.00019228,2]
[373832285,1753124771235,-500.0,0.00019228,2]
[373832286,1753124771261,-500.0,0.00019228,2]
[373832287,1753124771287,-500.0,0.00019228,2]
[373832288,1753124771311,-500.0,0.00019228,2]
[373832289,1753124771335,-555.9098475,0.00019228,2]
[373832290,1753124771363,-500.0,0.00019228,2]
[373832291,1753124771386,-500.0,0.00019228,2]
[373832292,1753124771409,-500.0,0.00019228,2]
[373832293,1753124771433,-555.9098475,0.00019228,2]
[373832294,1753124771457,-500.0,0.00019228,2]
[373832295,1753124771480,-500.0,0.00019228,2]
[373832296,1753124771504,-500.0,0.00019228,2]
[373832297,1753124771528,-500.0,0.00019228,2]
[373832298,1753124771551,-500.0,0.00019228,2]
[373832299,1753124771576,-555.9098475,0.00019228,2]
[373832300,1753124771599,-330.12891717,0.00019228,2]
[373832301,1753124771622,-196.68971259,0.00019228,2]
[373832302,1753124771646,-555.9098475,0.00019228,2]
[373832303,1753124771669,-482.94362914,0.00019228,2]
[373832304,1753124771693,-500.0,0.00019228,2]
[373832305,1753124771717,-500.0,0.00019228,2]
[373832306,1753124771741,-500.0,0.00019228,2]
[373832307,1753124771766,-500.0,0.00019228,2]
[373832308,1753124771790,-555.9098475,0.00019228,2]
[373832309,1753124771813,-500.0,0.00019228,2]
[373832310,1753124771837,-500.0,0.00019228,2]
[373832311,1753124771861,-555.9098475,0.00019228,2]
[373832312,1753124771885,-500.0,0.00019228,2]
[373832313,1753124771913,-500.0,0.00019228,2]
[373832314,1753124771940,-555.9098475,0.00019228,2]
[373832315,1753124771962,-500.0,0.00019228,2]
[373832316,1753124771986,-500.0,0.00019228,2]
[373832317,1753124772009,-555.9098475,0.00019228,2]
[373832318,1753124772033,-500.0,0.00019228,2]
[373832319,1753124772058,-555.9098475,0.00019228,2]
[373832320,1753124772081,-500.0,0.00019228,2]
[373832321,1753124772109,-500.0,0.00019228,2]
[373832322,1753124772139,-555.9098475,0.00019228,2]
[373832323,1753124772165,-500.0,0.00019228,2]
[373832324,1753124772190,-555.9098475,0.00019228,2]
[373832325,1753124772216,-500.0,0.00019228,2]
[373832326,1753124772241,-555.9098475,0.00019228,2]
[373832327,1753124772267,-500.0,0.00019228,2]
[373832328,1753124772294,-555.9098475,0.00019228,2]
[373832329,1753124772319,-500.0,0.00019228,2]
[373832330,1753124772346,-555.9098475,0.00019228,2]
[373832331,1753124772371,-500.0,0.00019228,2]
[373832332,1753124772396,-555.9098475,0.00019228,2]
[373832333,1753124772421,-555.9098475,0.00019228,2]
[373832334,1753124772446,-500.0,0.00019228,2]
[373832335,1753124772470,-555.9098475,0.00019228,2]
[373832336,1753124772495,-555.9098475,0.00019228,2]
[373832337,1753124772520,-500.0,0.00019228,2]
[373832338,1753124772545,-555.9098475,0.00019228,2]
[373832339,1753124772569,-500.0,0.00019228,2]
[373832340,1753124772594,-555.9098475,0.00019228,2]
[373832341,1753124772618,-555.9098475,0.00019228,2]
[373832342,1753124772643,-555.9098475,0.00019228,2]
[373832343,1753124772669,-555.9098475,0.00019228,2]
[373832344,1753124772695,-500.0,0.00019228,2]
[373832345,1753124772721,-555.9098475,0.00019228,2]
[373832346,1753124772745,-555.9098475,0.00019228,2]
[373832347,1753124772769,-500.0,0.00019228,2]
[373832348,1753124772794,-555.9098475,0.00019228,2]
[373832349,1753124772818,-555.9098475,0.00019228,2]
[373832350,1753124772842,-555.9098475,0.00019228,2]
[373832351,1753124772866,-555.9098475,0.00019228,2]
[373832352,1753124772892,-555.9098475,0.00019228,2]
[373832353,1753124772916,-555.9098475,0.00019228,2]
[373832354,1753124772940,-555.9098475,0.00019228,2]
[373832355,1753124772964,-555.9098475,0.00019228,2]
[373832356,1753124772988,-555.9098475,0.00019228,2]
[373832357,1753124773012,-555.9098475,0.00019228,2]
[373832358,1753124773036,-555.9098475,0.00019228,2]
[373832359,1753124773060,-555.9098475,0.00019228,2]
[373832360,1753124773084,-555.9098475,0.00019228,2]
[373832361,1753124773107,-555.9098475,0.00019228,2]
[373832362,1753124773131,-555.9098475,0.00019228,2]
[373832363,1753124773156,-555.9098475,0.00019228,2]
[373832364,1753124773182,-269.61339211,0.00019228,2]
[373832365,1753124773206,-555.9098475,0.00019228,2]
[373832366,1753124773231,-555.9098475,0.00019228,2]
[373832367,1753124773256,-500.0,0.00019228,2]
[373832368,1753124773280,-555.9098475,0.00019228,2]
[373832369,1753124773314,-555.9098475,0.00019228,2]
[373832370,1753124773338,-555.9098475,0.00019228,2]
[373832371,1753124773365,-555.9098475,0.00019228,2]
[373832372,1753124773388,-555.9098475,0.00019228,2]
[373832373,1753124773414,-555.9098475,0.00019228,2]
[373832374,1753124773438,-555.9098475,0.00019228,2]
[373832375,1753124773461,-555.9098475,0.00019228,2]
[373832376,1753124773486,-555.9098475,0.00019228,2]
[373832377,1753124773509,-555.9098475,0.00019228,2]
[373832378,1753124773533,-555.9098475,0.00019228,2]
[373832379,1753124773560,-555.9098475,0.00019228,2]
[373832380,1753124773584,-555.9098475,0.00019228,2]
[373832381,1753124773609,-555.9098475,0.00019228,2]
[373832382,1753124773632,-555.9098475,0.00019228,2]
[373832383,1753124773656,-555.9098475,0.00019228,2]
[373832384,1753124773681,-555.9098475,0.00019228,2]
[373832385,1753124773706,-555.9098475,0.00019228,2]
[373832386,1753124773730,-555.9098475,0.00019228,2]
[373832387,1753124773753,-499.99999999,0.00019228,2]
[373832388,1753124773777,-638.32642063,0.00019228,2]
[373832389,1753124773802,-638.32642063,0.00019228,2]
[373832390,1753124773826,-638.32642063,0.00019228,2]
[373832391,1753124773850,-638.32642063,0.00019228,2]
[373832392,1753124773874,-638.32642063,0.00019228,2]
[373832393,1753124773899,-638.32642063,0.00019228,2]
[373832394,1753124773927,-638.32642063,0.00019228,2]
[373832395,1753124773951,-638.32642063,0.00019228,2]
[373832396,1753124773977,-638.32642063,0.00019228,2]
[373832397,1753124774002,-638.32642063,0.00019228,2]
[373832398,1753124774028,-638.32642063,0.00019228,2]
[373832399,1753124774177,-638.32642063,0.00019228,2]
[373832400,1753124774202,-638.32642063,0.00019228,2]
[373832401,1753124774225,-638.32642063,0.00019228,2]
[373832402,1753124774249,-638.32642063,0.00019228,2]
[373832403,1753124774274,-638.32642063,0.00019228,2]
[373832404,1753124774301,-638.32642063,0.00019228,2]
[373832405,1753124774326,-638.32642063,0.00019228,2]
[373832406,1753124774352,-638.32642063,0.00019228,2]
[373832407,1753124774376,-638.32642063,0.00019228,2]
[373832408,1753124774400,-638.32642063,0.00019228,2]
[373832409,1753124774425,-638.32642063,0.00019228,2]
[373832410,1753124774453,-638.32642063,0.00019228,2]
[373832411,1753124774477,-638.32642063,0.00019228,2]
[373832412,1753124774501,-638.32642063,0.00019228,2]
[373832413,1753124774524,-370000.0,0.00019229,2]
[373832414,1753124774546,-500.0,0.00019273,2]
[373832415,1753124774568,-500.0,0.00019273,2]
[373832416,1753124774590,-500.0,0.00019273,2]
[373832417,1753124774612,-242.0,0.00019317,2]
[373832418,1753124774633,-460.0,0.00019317,2]
[373832419,1753124774655,-460.0,0.00019317,2]
[373832420,1753124774679,-460.0,0.00019317,2]
[373832421,1753124774701,-460.0,0.00019317,2]
[373832422,1753124774724,-460.0,0.00019317,2]
[373832423,1753124774747,-215.0738,0.00019318,2]
[373832424,1753124774770,-151.0,0.00019318,2]
[373832425,1753124774794,-151.0,0.00019318,2]
[373832426,1753124774818,-151.0,0.00019318,2]
[373832427,1753124774841,-151.0,0.00019318,2]
[373832428,1753124774864,-151.0,0.00019318,2]
[373832429,1753124774887,-151.0,0.00019318,2]
[373832430,1753124774911,-3801.642,0.00019318,2]
[373832431,1753124774932,-151.0,0.00019318,2]
[373832432,1753124774955,-151.0,0.00019318,2]
[373832433,1753124774979,-151.0,0.00019318,2]
[373832434,1753124775002,-151.0,0.00019318,2]
[373832435,1753124775027,-151.0,0.00019318,2]
[373832436,1753124775051,-151.0,0.00019318,2]
[373832437,1753124775075,-151.0,0.00019318,2]
[373832438,1753124775098,-151.0,0.00019318,2]
[373832439,1753124775120,-151.0,0.00019318,2]
[373832440,1753124775142,-151.0,0.00019318,2]
[373832441,1753124775167,-151.0,0.00019318,2]
[373832442,1753124775189,-151.0,0.00019318,2]
[373832443,1753124775216,-151.0,0.00019318,2]
[373832444,1753124775241,-151.0,0.00019318,2]
[373832445,1753124775269,-151.0,0.00019318,2]
[373832446,1753124775298,-5156.44835929,0.00019318,2]
[373832447,1753124971229,-981.66482561,0.000189,2]
[373832490,1753125032676,-2756.69506485,0.00019128,2]
[373832496,1753125032743,-4328.53756332,0.00019128,2]
[373832497,1753125032753,-302.90913937,0.00019164,2]
[373832499,1753125032762,-666.0,0.00019178,2]
[373832501,1753125032771,-172.0,0.00019178,3]
[373832503,1753125032781,-303.00000303,0.00019183,2]
[373832505,1753125032790,-223.0,0.00019226,2]
[373832507,1753125032803,-300.0,0.00019226,2]
[373832509,1753125032812,-300.0,0.00019226,2]
[373832511,1753125032821,-462.83383165,0.00019227,2]
[373832513,1753125032830,-460.0,0.00019227,2]
[373832515,1753125032839,-460.0,0.00019227,2]
[373832517,1753125032849,-429.64154219,0.00019227,2]
[373832518,1753125032859,-84.59372347,0.00019227,2]
[373832550,1753125038635,-809.70627653,0.00019227,2]
[373832552,1753125038645,-460.0,0.00019227,2]
[373832554,1753125038657,-460.0,0.00019227,2]
[373832556,1753125038667,-460.0,0.00019227,2]
[373832558,1753125038677,-518.18505277,0.00019227,2]
[373832560,1753125038687,-881.59,0.00019227,2]
[373832562,1753125038696,-460.0,0.00019227,2]
[373832564,1753125038706,-460.0,0.00019227,2]
[373832566,1753125038716,-460.0,0.00019227,2]
[373832568,1753125038726,-464.3,0.00019227,2]
[373832570,1753125038735,-460.0,0.00019227,2]
[373832571,1753125038744,-460.0,0.00019227,2]
[373832572,1753125038754,-460.0,0.00019227,2]
[373832573,1753125038764,-460.0,0.00019227,2]
[373832574,1753125038774,-460.0,0.00019227,2]
[373832575,1753125038784,-500.89911758,0.00019227,2]
[373832576,1753125038794,-460.0,0.00019227,2]
[373832577,1753125038804,-460.0,0.00019227,2]
[373832578,1753125038814,-460.0,0.00019227,2]
[373832579,1753125038824,-460.0,0.00019227,2]
[373832580,1753125038834,-460.0,0.00019317,2]
[373832581,1753125038844,-460.0,0.00019317,2]
[373832582,1753125038854,-460.0,0.00019317,2]
[373832583,1753125038864,-460.0,0.00019317,2]
[373832584,1753125038873,-460.0,0.00019317,2]
[373832585,1753125038883,-460.0,0.00019317,2]
[373832586,1753125038893,-460.0,0.00019317,2]
[373832587,1753125038905,-460.0,0.00019317,2]
[373832588,1753125038915,-525.95,0.00019317,2]
[373832589,1753125038924,-533.45958033,0.00019317,2]
[373832590,1753125038934,-460.0,0.00019317,2]
[373832591,1753125038944,-460.0,0.00019317,2]
[373832592,1753125038953,-286.63206287,0.00019317,2]
[373832593,1753125038963,-460.0,0.00019317,2]
[373832594,1753125038973,-215.0738,0.00019317,2]
[373832595,1753125038983,-3801.642,0.00019317,2]
[373832596,1753125039099,-151.0,0.00019318,2]
[373832597,1753125039109,-151.0,0.00019318,2]
[373832598,1753125039119,-151.0,0.00019318,2]
[373832599,1753125039129,-151.0,0.00019318,2]
[373832600,1753125039140,-151.0,0.00019318,2]
[373832601,1753125039152,-151.0,0.00019318,2]
[373832602,1753125039163,-151.0,0.00019318,2]
[373832603,1753125039173,-151.0,0.00019318,2]
[373832604,1753125039183,-151.0,0.00019318,2]
[373832605,1753125039193,-151.0,0.00019318,2]
[373832606,1753125039203,-151.0,0.00019318,2]
[373832607,1753125039213,-151.0,0.00019318,2]
[373832608,1753125039223,-151.0,0.00019318,2]
[373832609,1753125039233,-151.0,0.00019318,2]
[373832610,1753125039242,-151.0,0.00019318,2]
[373832611,1753125039252,-151.0,0.00019318,2]
[373832612,1753125039261,-151.0,0.00019318,2]
[373832613,1753125039271,-151.0,0.00019318,2]
[373832614,1753125039280,-151.0,0.00019318,2]
[373832615,1753125039290,-151.0,0.00019318,2]
[373832616,1753125039300,-151.0,0.00019318,2]
[373832617,1753125039310,-151.0,0.00019318,2]
[373832618,1753125039319,-151.0,0.00019318,2]
[373832619,1753125039329,-151.0,0.00019318,2]
[373832620,1753125039343,-151.0,0.00019318,2]
[373832621,1753125039357,-151.0,0.00019318,2]
[373832622,1753125039366,-12258.59589918,0.00019318,2]
[373832623,1753125039378,-12741.40410082,0.00019318,2]
[373832624,1753125039387,-19042.51828975,0.00019318,2]
[373832625,1753125039398,-151.0,0.00019318,2]
[373832626,1753125039408,-151.0,0.00019318,2]
[373832627,1753125039418,-155.0,0.00019318,2]
[373832628,1753125039429,-151.0,0.00019318,2]
[373832629,1753125039439,-258.68,0.00019319,3]
[373832630,1753125039448,-220.3270699,0.00019328,2]
[373832631,1753125039457,-500.0,0.00019328,2]
[373832632,1753125039467,-466.29885695,0.00019328,2]
[373832633,1753125039479,-322.76533365,0.00019328,2]
[373832634,1753125039488,-425.56987969,0.00019328,2]
[373832635,1753125039497,-500.0,0.00019328,2]
[373832636,1753125039506,-324.44701321,0.00019328,2]
[373832637,1753125039515,-500.0,0.00019328,2]
[373832638,1753125039525,-500.0,0.00019328,2]
[373832639,1753125039534,-196.62371023,0.00019328,2]
[373832640,1753125039543,-500.0,0.00019328,2]
[373832641,1753125039552,-500.0,0.00019328,2]
[373832642,1753125039561,-500.0,0.00019328,2]
[373832643,1753125039571,-500.0,0.00019328,2]
[373832644,1753125039580,-500.0,0.00019328,2]
[373832645,1753125039589,-500.0,0.00019328,2]
[373832646,1753125039599,-500.0,0.00019328,2]
[373832647,1753125039608,-500.0,0.00019328,2]
[373832648,1753125039617,-598.36695358,0.00019328,2]